[Event "RUS-chT Premier 2021"]
[White "Makarian,Rudik"]
[Black "Sjugirov,Sanan"]
[WhiteTeam "Школа М. Ботвинника"]
[BlackTeam "Шахматная сборная Москвы"]
[Site "Sochi"]
[Round "7.15"]
[Annotator "ChessBase"]
[Result "1/2-1/2"]
[Date "2021.05.08"]
[WhiteElo "2468"]
[BlackElo "2663"]
[PlyCount "55"]
[TimeControl "60"]

1. d4 {[%emt 0:0:0]} Nf6 {[%emt 0:0:0]} 2. c4 {[%emt 0:0:0]} g6 {[%emt 0:0:0]} 3. Nc3 {[%emt 0:0:14]} d5 {[%emt 0:0:8]} 4. Nf3 {[%emt 0:0:9]} Bg7 {[%emt 0:0:15]} 5. h3 {[%emt 0:0:3]} 0-0 {[%emt 0:11:27]} 6. cxd5 {[%emt 0:0:0]} Nxd5 {[%emt 0:0:11]} 7. e4 {[%emt 0:0:4]} Nxc3 {[%emt 0:0:12]} 8. bxc3 {[%emt 0:0:3]} c5 {[%emt 0:0:24]} 9. Be2 {[%emt 0:0:8]} Nc6 {[%emt 0:0:0]} 10. Be3 {[%emt 0:0:5]} cxd4 {[%emt 0:1:56]} 11. cxd4 {[%emt 0:0:6]
} Qa5+ {[%emt 0:0:17]} 12. Bd2 {[%emt 0:0:5]} Qa3 {[%emt 0:0:15]} 13. d5 {[%emt 0:0:4]
} Ne5 {[%emt 0:3:1]} 14. 0-0 {[%emt 0:0:14]} Nxf3+ {[%emt 0:0:0]} 15. Bxf3 {[%emt 0:0:10]} a5 {[%emt 0:7:9]} 16. Re1 {[%emt 0:16:21]} Bxa1 {[%emt 0:23:42]} 17. Qxa1 {[%emt 0:0:8]} f6 {[%emt 0:0:21]} 18. e5 {[%emt 0:31:32]
} fxe5 {[%emt 0:1:42]} 19. Qxe5 {[%emt 0:0:10]} Qd6 {[%emt 0:0:0]} 20. Qxe7 {[%emt 0:0:18]} Qxe7 {[%emt 0:0:57]} 21. Rxe7 {[%emt 0:0:0]} Rf7 {[%emt 0:2:15]} 22. Re8+ {[%emt 0:12:58]} Rf8 {[%emt 0:0:5]} 23. Re5 {[%emt 0:5:56]} Rf5 {[%emt 0:2:42]} 24. Re7 {[%emt 0:0:3]} Rf7 {[%emt 0:0:4]
} 25. Re8+ {[%emt 0:4:50]} Rf8 {[%emt 0:0:14]} 26. Re1 {[%emt 0:0:23]
} Bxh3 {[%emt 0:15:7]} 27. Re7 {[%emt 0:10:13]} Rxf3 {[%emt 0:0:0]} 28. gxf3 {[%emt 0:0:10]} 1/2-1/2

[Event "RUS-chT Premier 2021"]
[White "Najer,Evgeniy"]
[Black "Afanasiev,Nikita"]
[WhiteTeam "Шахматная сборная Москвы"]
[BlackTeam "Школа М. Ботвинника"]
[Site "Sochi"]
[Round "7.16"]
[Annotator "ChessBase"]
[Result "1/2-1/2"]
[Date "2021.05.08"]
[WhiteElo "2648"]
[BlackElo "2529"]
[PlyCount "127"]
[TimeControl "60"]

1. e4 {[%emt 0:0:0]} e5 {[%emt 0:0:0]} 2. Nf3 {[%emt 0:0:0]} Nc6 {[%emt 0:0:0]
} 3. Bb5 {[%emt 0:0:0]} Nf6 {[%emt 0:0:0]} 4. 0-0 {[%emt 0:0:0]} Nxe4 {[%emt 0:0:5]} 5. Re1 {[%emt 0:0:12]} Nd6 {[%emt 0:0:9]} 6. Nxe5 {[%emt 0:0:20]} Be7 {[%emt 0:0:13]} 7. Bf1 {[%emt 0:0:9]} Nxe5 {[%emt 0:0:38]
} 8. Rxe5 {[%emt 0:0:6]} 0-0 {[%emt 0:0:6]} 9. d4 {[%emt 0:0:0]} Bf6 {[%emt 0:1:13]} 10. Re2 {[%emt 0:0:6]} Re8 {[%emt 0:7:59]} 11. c3 {[%emt 0:11:50]} Rxe2 {[%emt 0:7:48]} 12. Qxe2 {[%emt 0:1:28]} Nf5 {[%emt 0:6:1]
} 13. Bf4 {[%emt 0:1:43]} c6 {[%emt 0:4:18]} 14. Nd2 {[%emt 0:0:0]} d5 {[%emt 0:1:4]} 15. Re1 {[%emt 0:0:9]} Be6 {[%emt 0:5:54]} 16. Nf3 {[%emt 0:8:1]} Nh4 {[%emt 0:1:5]} 17. Ne5 {[%emt 0:4:18]} Ng6 {[%emt 0:6:58]
} 18. Nxg6 {[%emt 0:0:55]} hxg6 {[%emt 0:0:5]} 19. Qd2 {[%emt 0:0:11]
} Qd7 {[%emt 0:5:19]} 20. Bg5 {[%emt 0:14:10]} Bxg5 {[%emt 0:0:0]} 21. Qxg5 {[%emt 0:0:42]} Re8 {[%emt 0:0:10]} 22. f3 {[%emt 0:0:28]} Qd8 {[%emt 0:7:29]} 23. Qxd8 {[%emt 0:3:45]} Rxd8 {[%emt 0:3:22]} 24. h4 {[%emt 0:0:3]
} Kf8 {[%emt 0:1:31]} 25. Kf2 {[%emt 0:1:20]} Ke7 {[%emt 0:0:0]} 26. g4 {[%emt 0:0:45]} Kd6 {[%emt 0:11:49]} 27. Bd3 {[%emt 0:1:16]} b6 {[%emt 0:1:19]
} 28. Kg3 {[%emt 0:3:35]} Bd7 {[%emt 0:7:39]} 29. f4 {[%emt 0:0:0]} Rh8 {[%emt 0:3:27]} 30. Re2 {[%emt 0:11:53]} Bc8 {[%emt 0:3:4]} 31. Re5 {[%emt 0:3:26]} Bd7 {[%emt 0:0:30]} 32. a3 {[%emt 0:1:47]} f6 {[%emt 0:0:0]} 33. Re3 {[%emt 0:0:13]} Re8 {[%emt 0:0:13]} 34. Rxe8 {[%emt 0:0:47]} Bxe8 {[%emt 0:0:9]} 35. g5 {[%emt 0:1:55]} Ke7 {[%emt 0:3:17]} 36. c4 {[%emt 0:4:40]
} dxc4 {[%emt 0:1:36]} 37. Bxc4 {[%emt 0:0:2]} fxg5 {[%emt 0:0:0]} 38. fxg5 {[%emt 0:1:51]} Bf7 {[%emt 0:0:3]} 39. Be2 {[%emt 0:5:32]} Kd6 {[%emt 0:0:16]} 40. Kf4 {[%emt 0:0:0]} a5 {[%emt 0:0:0]} 41. Ke3 {[%emt 0:2:26]
} Be6 {[%emt 0:19:20]} 42. Bd3 {[%emt 0:0:44]} Bf7 {[%emt 0:0:0]} 43. Bc2 {[%emt 0:0:17]} Ke7 {[%emt 0:0:49]} 44. Bd3 {[%emt 0:18:19]} Kd6 {[%emt 0:0:23]} 45. Bb1 {[%emt 0:0:6]} Be8 {[%emt 0:7:45]} 46. Ba2 {[%emt 0:1:35]
} Bd7 {[%emt 0:0:10]} 47. Bb1 {[%emt 0:3:11]} Be8 {[%emt 0:0:0]} 48. Bc2 {[%emt 0:0:28]} Bf7 {[%emt 0:4:45]} 49. Kf4 {[%emt 0:0:14]} c5 {[%emt 0:0:35]} 50. Ke3 {[%emt 0:0:56]} Be8 {[%emt 0:1:23]} 51. Bb3 {[%emt 0:1:33]
} Bd7 {[%emt 0:0:21]} 52. dxc5+ {[%emt 0:1:6]} bxc5 {[%emt 0:0:0]} 53. Kf4 {[%emt 0:0:12]} Bb5 {[%emt 0:0:56]} 54. Bf7 {[%emt 0:1:47]} Bd3 {[%emt 0:0:4]} 55. Bg8 {[%emt 0:0:9]} Bb5 {[%emt 0:0:38]} 56. Bb3 {[%emt 0:1:17]
} Bd3 {[%emt 0:0:46]} 57. Bf7 {[%emt 0:0:6]} Bc2 {[%emt 0:0:0]} 58. Bc4 {[%emt 0:2:55]} Ba4 {[%emt 0:0:54]} 59. b3 {[%emt 0:0:53]} Be8 {[%emt 0:0:53]} 60. Bg8 {[%emt 0:1:11]} Bb5 {[%emt 0:0:24]} 61. a4 {[%emt 0:0:0]} Be2 {[%emt 0:0:58]} 62. Bh7 {[%emt 0:1:0]} Bh5 {[%emt 0:0:18]} 63. Bg8 {[%emt 0:0:40]} Bd1 {[%emt 0:0:47]} 64. Bc4 {[%emt 0:0:13]} 1/2-1/2

[Event "RUS-chT Premier 2021"]
[White "Kukhmazov,Arsen"]
[Black "Grachev,Boris"]
[WhiteTeam "Школа М. Ботвинника"]
[BlackTeam "Шахматная сборная Москвы"]
[Site "Sochi"]
[Round "7.17"]
[Annotator "ChessBase"]
[Result "1/2-1/2"]
[Date "2021.05.08"]
[WhiteElo "2451"]
[BlackElo "2619"]
[PlyCount "44"]
[TimeControl "60"]

1. d4 {[%emt 0:0:0]} d5 {[%emt 0:0:0]} 2. c4 {[%emt 0:0:0]} c6 {[%emt 0:0:0]} 3. Nf3 {[%emt 0:0:0]} Nf6 {[%emt 0:0:0]} 4. Nc3 {[%emt 0:0:0]} e6 {[%emt 0:0:9]} 5. Bg5 {[%emt 0:0:18]} Nbd7 {[%emt 0:0:7]} 6. e3 {[%emt 0:0:0]} Qa5 {[%emt 0:0:42]} 7. Nd2 {[%emt 0:0:44]} Bb4 {[%emt 0:0:41]} 8. Qc2 {[%emt 0:0:8]} 0-0 {[%emt 0:1:31]} 9. Be2 {[%emt 0:0:28]} c5 {[%emt 0:0:0]} 10. 0-0 {[%emt 0:1:3]} cxd4 {[%emt 0:0:18]} 11. exd4 {[%emt 0:0:4]
} dxc4 {[%emt 0:0:33]} 12. Bh4 {[%emt 0:0:14]} Nb6 {[%emt 0:2:2]} 13. Nxc4 {[%emt 0:6:54]} Nxc4 {[%emt 0:0:20]} 14. Bxc4 {[%emt 0:0:4]} Bd7 {[%emt 0:0:0]} 15. Bxf6 {[%emt 0:7:29]} gxf6 {[%emt 0:0:11]} 16. d5 {[%emt 0:1:1]} Bxc3 {[%emt 0:1:35]} 17. dxe6 {[%emt 0:0:39]} Bxe6 {[%emt 0:0:9]} 18. Bxe6 {[%emt 0:0:10]} fxe6 {[%emt 0:0:7]} 19. bxc3 {[%emt 0:0:17]} Rac8 {[%emt 0:0:0]} 20. c4 {[%emt 0:11:8]} Qc5 {[%emt 0:5:0]} 21. Qe4 {[%emt 0:5:9]} Qxc4 {[%emt 0:0:45]} 22. Qxb7 {[%emt 0:0:51]} Rf7 {[%emt 0:0:6]} 1/2-1/2

[Event "RUS-chT Premier 2021"]
[White "Popov,Ivan"]
[Black "Vetokhin,Savva"]
[WhiteTeam "Шахматная сборная Москвы"]
[BlackTeam "Школа М. Ботвинника"]
[Site "Sochi"]
[Round "7.18"]
[Annotator "ChessBase"]
[Result "1/2-1/2"]
[Date "2021.05.08"]
[WhiteElo "2630"]
[BlackElo "2261"]
[PlyCount "40"]
[TimeControl "60"]

1. e4 {[%emt 0:0:0]} e5 {[%emt 0:0:0]} 2. Nf3 {[%emt 0:0:12]} Nf6 {[%emt 0:0:0]
} 3. Nxe5 {[%emt 0:0:51]} d6 {[%emt 0:0:16]} 4. Nf3 {[%emt 0:0:0]} Nxe4 {[%emt 0:0:7]} 5. Nc3 {[%emt 0:0:18]} Nxc3 {[%emt 0:0:13]} 6. dxc3 {[%emt 0:0:8]} Be7 {[%emt 0:0:6]} 7. Be3 {[%emt 0:0:18]} 0-0 {[%emt 0:0:19]
} 8. Qd2 {[%emt 0:0:14]} Nd7 {[%emt 0:0:17]} 9. 0-0-0 {[%emt 0:0:0]} c6 {[%emt 0:0:20]} 10. h4 {[%emt 0:0:9]} Re8 {[%emt 0:0:11]} 11. Bd3 {[%emt 0:4:1]} d5 {[%emt 0:2:29]} 12. Rde1 {[%emt 0:5:40]} Bc5 {[%emt 0:11:34]
} 13. Bd4 {[%emt 0:28:9]} Bxd4 {[%emt 0:3:36]} 14. cxd4 {[%emt 0:0:40]
} Nf6 {[%emt 0:0:25]} 15. Ne5 {[%emt 0:10:42]} Ne4 {[%emt 0:0:0]} 16. Bxe4 {[%emt 0:10:54]} dxe4 {[%emt 0:0:9]} 17. Nc4 {[%emt 0:0:56]} Be6 {[%emt 0:1:5]} 18. Ne3 {[%emt 0:0:11]} Qd6 {[%emt 0:11:25]} 19. Qc3 {[%emt 0:4:18]
} a5 {[%emt 0:4:16]} 20. a3 {[%emt 0:8:9]} Red8 {[%emt 0:0:0]} 1/2-1/2

[Event "RUS-chT Premier 2021"]
[White "Truskavetsky,Alexandr"]
[Black "Shubin,Kirill"]
[WhiteTeam "Киммерия"]
[BlackTeam "СШОР"]
[Site "Sochi"]
[Round "7.19"]
[Annotator "ChessBase"]
[Result "1/2-1/2"]
[Date "2021.05.08"]
[WhiteElo "2387"]
[BlackElo "2466"]
[PlyCount "103"]
[TimeControl "60"]

1. d4 {[%emt 0:0:0]} e6 {[%emt 0:0:0]} 2. Nf3 {[%emt 0:0:0]} Nf6 {[%emt 0:0:0]
} 3. c4 {[%emt 0:0:0]} c5 {[%emt 0:0:0]} 4. d5 {[%emt 0:0:0]} d6 {[%emt 0:0:0]} 5. Nc3 {[%emt 0:0:36]} exd5 {[%emt 0:0:0]} 6. cxd5 {[%emt 0:0:6]} g6 {[%emt 0:0:0]} 7. h3 {[%emt 0:1:45]} a6 {[%emt 0:1:33]} 8. a4 {[%emt 0:0:9]} Qe7 {[%emt 0:0:9]} 9. Bf4 {[%emt 0:16:35]} Nbd7 {[%emt 0:1:17]
} 10. e3 {[%emt 0:0:28]} Bg7 {[%emt 0:0:23]} 11. Be2 {[%emt 0:0:0]} 0-0 {[%emt 0:0:32]} 12. 0-0 {[%emt 0:0:28]} Ne8 {[%emt 0:0:20]} 13. e4 {[%emt 0:7:58]} Rb8 {[%emt 0:7:21]} 14. Qd2 {[%emt 0:10:5]} Nc7 {[%emt 0:0:0]} 15. Rfe1 {[%emt 0:11:36]} f6 {[%emt 0:0:8]} 16. Rab1 {[%emt 0:1:31]} a5 {[%emt 0:3:50]} 17. Bg3 {[%emt 0:25:36]} Ne5 {[%emt 0:6:12]} 18. Nh2 {[%emt 0:0:20]
} g5 {[%emt 0:1:22]} 19. Bg4 {[%emt 0:1:47]} b5 {[%emt 0:5:8]
} 20. Bxc8 {[%emt 0:5:27]} Rfxc8 {[%emt 0:0:4]} 21. axb5 {[%emt 0:0:20]} Nxb5 {[%emt 0:0:4]} 22. Nxb5 {[%emt 0:0:37]} Rxb5 {[%emt 0:0:8]} 23. Bxe5 {[%emt 0:6:36]} Qxe5 {[%emt 0:0:7]} 24. Ng4 {[%emt 0:1:26]} Qe8 {[%emt 0:0:0]} 25. f3 {[%emt 0:2:39]} Rcb8 {[%emt 0:0:44]} 26. Qc2 {[%emt 0:1:26]} Rb4 {[%emt 0:1:29]} 27. Ne3 {[%emt 0:0:52]} Qb5 {[%emt 0:0:14]} 28. Nf5 {[%emt 0:0:37]
} Bf8 {[%emt 0:0:10]} 29. h4 {[%emt 0:1:18]} Rxb2 {[%emt 0:0:0]} 30. Rxb2 {[%emt 0:0:58]} Qxb2 {[%emt 0:0:4]} 31. Qa4 {[%emt 0:1:11]} Qd2 {[%emt 0:0:23]} 32. Rd1 {[%emt 0:0:38]} Qe2 {[%emt 0:0:54]} 33. Ng3 {[%emt 0:0:24]
} Qe3+ {[%emt 0:1:14]} 34. Kh1 {[%emt 0:0:6]} gxh4 {[%emt 0:0:0]} 35. Nf5 {[%emt 0:0:15]} Qb3 {[%emt 0:0:10]} 36. Ra1 {[%emt 0:0:43]} Qxa4 {[%emt 0:0:48]} 37. Rxa4 {[%emt 0:0:2]} h3 {[%emt 0:2:26]} 38. Rxa5 {[%emt 0:0:47]
} c4 {[%emt 0:2:9]} 39. Ra6 {[%emt 0:0:20]} Rb2 {[%emt 0:0:0]} 40. Rc6 {[%emt 0:0:0]} hxg2+ {[%emt 0:0:0]} 41. Kg1 {[%emt 0:1:56]} Rc2 {[%emt 0:4:59]} 42. Nd4 {[%emt 0:10:42]} Rd2 {[%emt 0:1:38]} 43. Rxc4 {[%emt 0:0:9]
} h5 {[%emt 0:1:27]} 44. Nf5 {[%emt 0:1:36]} Kf7 {[%emt 0:0:0]} 45. Rc7+ {[%emt 0:9:20]} Kg6 {[%emt 0:0:26]} 46. f4 {[%emt 0:0:44]} h4 {[%emt 0:1:50]} 47. Nxh4+ {[%emt 0:0:24]} Kh5 {[%emt 0:0:5]} 48. Nxg2 {[%emt 0:1:12]
} Kg4 {[%emt 0:0:14]} 49. Rf7 {[%emt 0:2:22]} Kf3 {[%emt 0:0:0]} 50. Nh4+ {[%emt 0:1:22]} Kxf4 {[%emt 0:0:5]} 51. Rxf8 {[%emt 0:1:3]} Kxe4 {[%emt 0:0:7]} 52. Rxf6 {[%emt 0:0:10]} 1/2-1/2

[Event "RUS-chT Premier 2021"]
[White "Usmanov,Vasily"]
[Black "Musalov,Ruslan"]
[WhiteTeam "СШОР"]
[BlackTeam "Киммерия"]
[Site "Sochi"]
[Round "7.20"]
[Annotator "NA"]
[Result "1-0"]
[Date "2021.05.08"]
[WhiteElo "2447"]
[BlackElo "2359"]
[PlyCount "129"]
[TimeControl "60"]

1. d4 {[%emt 0:0:0]} d6 {[%emt 0:0:0]} 2. Nf3 {[%emt 0:0:29]} g6 {[%emt 0:0:0]} 3. c4 {[%emt 0:1:7]} Bg7 {[%emt 0:0:10]} 4. Nc3 {[%emt 0:0:7]} Bg4 {[%emt 0:1:20]} 5. e3 {[%emt 0:4:31]} Nc6 {[%emt 0:4:6]} 6. h3 {[%emt 0:0:0]} Bxf3 {[%emt 0:4:8]} 7. Qxf3 {[%emt 0:0:2]} f5 {[%emt 0:4:55]} 8. g4 {[%emt 0:9:46]
} Nh6 {[%emt 0:7:12]} 9. d5 {[%emt 0:13:32]} Nb4 {[%emt 0:19:29]
} 10. Qd1 {[%emt 0:7:25]} Qd7 {[%emt 0:1:22]} 11. Be2 {[%emt 0:6:30]} 0-0 {[%emt 0:15:49]
} 12. e4 {[%emt 0:7:56]} fxe4 {[%emt 0:6:9]} 13. Nxe4 {[%emt 0:0:6]
} Nf7 {[%emt 0:0:13]} 14. Be3 {[%emt 0:6:21]} e6 {[%emt 0:0:0]} 15. Qb3 {[%emt 0:0:37]} exd5 {[%emt 0:8:0]} 16. cxd5 {[%emt 0:0:25]} a5 {[%emt 0:0:24]} 17. a3 {[%emt 0:2:37]} Qe7 {[%emt 0:6:41]} 18. f3 {[%emt 0:5:36]
} Na6 {[%emt 0:0:16]} 19. 0-0 {[%emt 0:0:3]} Nc5 {[%emt 0:0:0]} 20. Bxc5 {[%emt 0:14:52]} dxc5 {[%emt 0:0:10]} 21. Rae1 {[%emt 0:0:7]} Nd6 {[%emt 0:6:44]} 22. Kg2 {[%emt 0:0:8]} Be5 {[%emt 0:1:11]} 23. Nxc5 {[%emt 0:1:44]
} Qh4 {[%emt 0:0:55]} 24. f4 {[%emt 0:0:4]} Rxf4 {[%emt 0:0:0]} 25. Ne6 {[%emt 0:1:28]} Rxf1 {[%emt 0:4:23]} 26. Rxf1 {[%emt 0:0:2]} Qe7 {[%emt 0:0:13]} 27. a4 {[%emt 0:2:36]} b6 {[%emt 0:0:44]} 28. Rc1 {[%emt 0:2:43]
} Nf7 {[%emt 0:0:19]} 29. Rc2 {[%emt 0:1:24]} Bd6 {[%emt 0:0:0]} 30. Bb5 {[%emt 0:0:37]} Ne5 {[%emt 0:1:16]} 31. Re2 {[%emt 0:0:14]} Qf6 {[%emt 0:0:39]} 32. Qc3 {[%emt 0:2:36]} h5 {[%emt 0:0:39]} 33. g5 {[%emt 0:0:0]} Qf5 {[%emt 0:0:7]} 34. Qe3 {[%emt 0:2:27]} Kh7 {[%emt 0:1:10]} 35. b3 {[%emt 0:0:4]} Rg8 {[%emt 0:0:9]} 36. Qe4 {[%emt 0:2:56]} Qxe4+ {[%emt 0:0:30]
} 37. Rxe4 {[%emt 0:0:2]} Ra8 {[%emt 0:0:50]} 38. Re2 {[%emt 0:1:3]
} Kg8 {[%emt 0:0:11]} 39. Rc2 {[%emt 0:1:45]} Kf7 {[%emt 0:0:0]} 40. Rf2+ {[%emt 0:0:0]} Ke7 {[%emt 0:0:0]} 41. Rf6 {[%emt 0:0:45]} Rg8 {[%emt 0:1:0]} 42. Nf4 {[%emt 0:7:53]} Rf8 {[%emt 0:9:16]} 43. Nxg6+ {[%emt 0:1:7]
} Nxg6 {[%emt 0:0:8]} 44. Rxg6 {[%emt 0:0:2]} Rf5 {[%emt 0:0:0]} 45. h4 {[%emt 0:11:56]} Rf4 {[%emt 0:0:55]} 46. Bd3 {[%emt 0:2:50]} Rg4+ {[%emt 0:6:8]} 47. Kf3 {[%emt 0:0:5]} Rf4+ {[%emt 0:0:11]} 48. Ke2 {[%emt 0:0:31]
} Rxh4 {[%emt 0:0:4]} 49. Bf5 {[%emt 0:0:32]} Kf7 {[%emt 0:0:0]} 50. Rh6 {[%emt 0:0:15]} Bf8 {[%emt 0:0:23]} 51. Rh8 {[%emt 0:2:51]} Rh2+ {[%emt 0:6:46]} 52. Kd3 {[%emt 0:0:52]} Rg2 {[%emt 0:2:45]} 53. g6+ {[%emt 0:3:3]
} Ke7 {[%emt 0:0:3]} 54. d6+ {[%emt 0:3:53]} cxd6 {[%emt 0:0:0]} 55. Rh7+ {[%emt 0:0:1]} Ke8 {[%emt 0:2:16]} 56. Kc4 {[%emt 0:0:57]} h4 {[%emt 0:0:53]} 57. Kd5 {[%emt 0:0:25]} Re2 {[%emt 0:0:39]} 58. Kc6 {[%emt 0:0:37]
} Re3 {[%emt 0:0:51]} 59. g7 {[%emt 0:1:11]} Bxg7 {[%emt 0:0:0]} 60. Rxg7 {[%emt 0:0:3]} Rxb3 {[%emt 0:0:8]} 61. Kxd6 {[%emt 0:0:19]} Kf8 {[%emt 0:0:33]} 62. Rg4 {[%emt 0:0:47]} Rb4 {[%emt 0:0:43]} 63. Be6 {[%emt 0:0:4]
} Rxg4 {[%emt 0:0:35]} 64. Bxg4 {[%emt 0:0:3]} Kf7 {[%emt 0:0:0]} 65. Kc6 {[%emt 0:0:3]} 1-0

[Event "RUS-chT Premier 2021"]
[White "Alexeev,Alexey"]
[Black "Pershin,Denis"]
[WhiteTeam "Киммерия"]
[BlackTeam "СШОР"]
[Site "Sochi"]
[Round "7.21"]
[Annotator "NA"]
[Result "1-0"]
[Date "2021.05.08"]
[WhiteElo "2243"]
[BlackElo "2391"]
[PlyCount "81"]
[TimeControl "60"]

1. e4 {[%emt 0:0:0]} c5 {[%emt 0:0:0]} 2. Nf3 Nc6 {[%emt 0:0:0]} 3. Bb5 {[%emt 0:0:0]
} g6 {[%emt 0:0:0]} 4. Bxc6 {[%emt 0:0:0]} bxc6 {[%emt 0:0:0]} 5. 0-0 {[%emt 0:0:12]} Bg7 {[%emt 0:0:5]} 6. c3 {[%emt 0:0:21]} Nf6 {[%emt 0:0:10]
} 7. Re1 {[%emt 0:1:56]} 0-0 {[%emt 0:0:11]} 8. d4 {[%emt 0:0:0]} cxd4 {[%emt 0:0:8]} 9. cxd4 {[%emt 0:0:5]} d5 {[%emt 0:3:17]} 10. e5 {[%emt 0:2:36]} Ne4 {[%emt 0:0:43]} 11. Nc3 {[%emt 0:0:51]} Nxc3 {[%emt 0:0:0]} 12. bxc3 {[%emt 0:0:8]} Qa5 {[%emt 0:0:50]} 13. Bg5 {[%emt 0:3:45]} f6 {[%emt 0:2:41]} 14. exf6 {[%emt 0:3:45]} exf6 {[%emt 0:0:6]} 15. Bd2 {[%emt 0:0:59]
} Bf5 {[%emt 0:4:11]} 16. c4 {[%emt 0:9:37]} Qa6 {[%emt 0:0:0]} 17. cxd5 {[%emt 0:2:10]} cxd5 {[%emt 0:0:6]} 18. Bb4 {[%emt 0:0:48]} Rfc8 {[%emt 0:11:39]} 19. Bc5 {[%emt 0:1:13]} Rab8 {[%emt 0:1:22]} 20. Re3 {[%emt 0:3:41]
} Rb2 {[%emt 0:8:44]} 21. Nh4 {[%emt 0:15:8]} Be4 {[%emt 0:0:0]} 22. f3 {[%emt 0:0:58]} Bc2 {[%emt 0:0:15]} 23. Qe1 {[%emt 0:1:50]} Bf8 {[%emt 0:10:14]} 24. Re6 {[%emt 0:9:16]} Qa4 {[%emt 0:3:4]} 25. Rxf6 {[%emt 0:5:3]
} Re8 {[%emt 0:8:0]} 26. Rxf8+ {[%emt 0:24:41]} Rxf8 {[%emt 0:0:0]} 27. Qe6+ {[%emt 0:2:38]} Rf7 {[%emt 0:0:19]} 28. Qxd5 {[%emt 0:1:26]
} Bb1 {[%emt 0:0:26]} 29. h3 {[%emt 0:0:41]} Qe8 {[%emt 0:7:13]} 30. Kh2 {[%emt 0:1:54]
} Qd7 {[%emt 0:1:7]} 31. Bd6 {[%emt 0:1:58]} Qd8 {[%emt 0:0:0]} 32. Qe5 {[%emt 0:1:46]} g5 {[%emt 0:3:0]} 33. Ba3 {[%emt 0:2:14]} Rbb7 {[%emt 0:1:52]} 34. Rxb1 {[%emt 0:0:25]} Rxb1 {[%emt 0:3:8]} 35. Nf5 {[%emt 0:0:4]
} Rb6 {[%emt 0:2:6]} 36. d5 {[%emt 0:2:3]} Rbf6 {[%emt 0:0:0]} 37. Ne7+ {[%emt 0:0:37]} Kh8 {[%emt 0:1:22]} 38. d6 {[%emt 0:0:22]} h6 {[%emt 0:3:35]} 39. Bb2 {[%emt 0:2:41]} Kh7 {[%emt 0:1:37]} 40. Qe4+ {[%emt 0:0:0]
} Kg7 {[%emt 0:0:0]} 41. Qg6+ {[%emt 0:0:37]} 1-0

[Event "RUS-chT Premier 2021"]
[White "Askerov,Marat"]
[Black "Babakekhyan,Artem"]
[WhiteTeam "СШОР"]
[BlackTeam "Киммерия"]
[Site "Sochi"]
[Round "7.22"]
[Annotator "NA"]
[Result "0-1"]
[Date "2021.05.08"]
[WhiteElo "2353"]
[BlackElo "2214"]
[PlyCount "128"]
[TimeControl "60"]

1. Nf3 {[%emt 0:0:0]} Nf6 {[%emt 0:0:0]} 2. c4 {[%emt 0:0:0]} g6 {[%emt 0:0:0]
} 3. Nc3 {[%emt 0:0:0]} d5 {[%emt 0:0:4]} 4. cxd5 {[%emt 0:0:0]} Nxd5 {[%emt 0:0:4]} 5. h4 {[%emt 0:0:0]} h6 {[%emt 0:12:13]} 6. e4 {[%emt 0:0:5]} Nxc3 {[%emt 0:0:47]} 7. dxc3 {[%emt 0:0:6]} Qxd1+ {[%emt 0:0:0]} 8. Kxd1 {[%emt 0:0:2]} f6 {[%emt 0:11:45]} 9. h5 {[%emt 0:0:17]} g5 {[%emt 0:1:11]} 10. Be3 {[%emt 0:5:14]} e5 {[%emt 0:1:36]} 11. Bc4 {[%emt 0:0:0]} Nd7 {[%emt 0:0:50]} 12. Be6 {[%emt 0:3:43]} a5 {[%emt 0:11:48]} 13. a4 {[%emt 0:2:10]} Bd6 {[%emt 0:1:6]} 14. Nh2 {[%emt 0:12:17]} b6 {[%emt 0:0:0]} 15. Ng4 {[%emt 0:14:42]} Ke7 {[%emt 0:1:25]} 16. Bf5 {[%emt 0:3:8]} Bb7 {[%emt 0:4:10]} 17. Bxd7 {[%emt 0:18:11]} Kxd7 {[%emt 0:0:4]} 18. Nxf6+ {[%emt 0:0:23]} Ke6 {[%emt 0:0:32]} 19. Nd5 {[%emt 0:0:27]} Bxd5 {[%emt 0:0:0]} 20. exd5+ {[%emt 0:0:5]} Kxd5 {[%emt 0:0:5]} 21. Kc2 {[%emt 0:0:0]} Rhf8 {[%emt 0:3:15]} 22. Rad1+ {[%emt 0:1:30]} Kc6 {[%emt 0:0:36]} 23. Rhe1 {[%emt 0:5:29]} Rf5 {[%emt 0:2:0]} 24. Kd3 {[%emt 0:2:31]} Raf8 {[%emt 0:0:54]
} 25. Ke4 {[%emt 0:3:55]} R5f6 {[%emt 0:9:13]} 26. Re2 {[%emt 0:2:5]
} R6f7 {[%emt 0:0:51]} 27. b3 {[%emt 0:2:10]} Re8 {[%emt 0:0:0]} 28. Red2 {[%emt 0:0:31]} Ref8 {[%emt 0:0:57]} 29. Rd5 {[%emt 0:1:38]} Rf6 {[%emt 0:9:15]} 30. f3 {[%emt 0:1:0]} Rg8 {[%emt 0:1:4]} 31. R5d3 {[%emt 0:7:49]
} g4 {[%emt 0:1:4]} 32. Rh1 {[%emt 0:5:15]} gxf3 {[%emt 0:0:0]} 33. gxf3 {[%emt 0:0:1]} Rg3 {[%emt 0:0:16]} 34. Bc1 {[%emt 0:1:2]} Kd7 {[%emt 0:0:55]} 35. Rh4 {[%emt 0:0:28]} Ke6 {[%emt 0:1:15]} 36. Bd2 {[%emt 0:0:50]
} Rg2 {[%emt 0:0:59]} 37. Bc1 {[%emt 0:0:28]} Rg1 {[%emt 0:0:0]} 38. Bd2 {[%emt 0:0:14]} Rb1 {[%emt 0:0:36]} 39. c4 {[%emt 0:0:25]} Rd1 {[%emt 0:0:42]} 40. Ke3 {[%emt 0:0:0]} Rg1 {[%emt 0:0:0]} 41. Ke4 {[%emt 0:12:3]
} Rg2 {[%emt 0:6:18]} 42. Bc3 {[%emt 0:8:22]} Rg5 {[%emt 0:0:0]} 43. Rd2 {[%emt 0:3:48]} Rgf5 {[%emt 0:3:8]} 44. Rh3 {[%emt 0:8:3]} Bc5 {[%emt 0:0:48]} 45. Rd8 {[%emt 0:1:9]} Rf4+ {[%emt 0:0:12]} 46. Kd3 {[%emt 0:0:4]
} Rxf3+ {[%emt 0:0:19]} 47. Rxf3 {[%emt 0:0:3]} Rxf3+ {[%emt 0:0:5]
} 48. Kc2 {[%emt 0:0:2]} Rf8 {[%emt 0:0:33]} 49. Rd5 {[%emt 0:0:0]} Rf5 {[%emt 0:2:11]} 50. Rd8 {[%emt 0:0:45]} Rxh5 {[%emt 0:0:26]} 51. Re8+ {[%emt 0:0:26]} Be7 {[%emt 0:1:27]} 52. Bd2 {[%emt 0:0:24]} Rh2 {[%emt 0:0:24]
} 53. Kd1 {[%emt 0:1:6]} Kd7 {[%emt 0:0:35]} 54. Rh8 {[%emt 0:0:0]} h5 {[%emt 0:0:42]} 55. Rh7 {[%emt 0:0:15]} Ke6 {[%emt 0:0:19]} 56. c5 {[%emt 0:0:24]} Bxc5 {[%emt 0:0:54]} 57. Rxc7 {[%emt 0:0:6]} Kd5 {[%emt 0:0:45]
} 58. Rh7 {[%emt 0:0:52]} Bd4 {[%emt 0:0:27]} 59. b4 {[%emt 0:0:0]} axb4 {[%emt 0:0:50]} 60. Bxb4 {[%emt 0:0:5]} Kc4 {[%emt 0:0:11]} 61. Be1 {[%emt 0:1:36]} Kd3 {[%emt 0:0:20]} 62. Rg7 {[%emt 0:0:38]} e4 {[%emt 0:0:33]
} 63. Rg3+ {[%emt 0:0:55]} e3 {[%emt 0:0:5]} 64. Rg5 {[%emt 0:0:0]} Ra2 {[%emt 0:0:33]} 0-1